fUSD/lending_fUSD_20250108
["ID","MTS","AMOUNT","RATE_DAILY","PERIOD"]
[348157755,1736358664046,-500.0,0.00011268,2]
[348157756,1736358664056,-500.0,0.00011268,2]
[348157757,1736358664066,-500.0,0.00011268,2]
[348157758,1736358664077,-500.0,0.00011268,2]
[348157759,1736358664087,-500.0,0.00011268,2]
[348157760,1736358664097,-500.0,0.00011268,2]
[348157761,1736358664107,-500.0,0.00011268,2]
[348157762,1736358664117,-500.0,0.00011268,2]
[348157763,1736358664127,-500.0,0.00011268,2]
[348157764,1736358664137,-500.0,0.00011268,2]
[348157765,1736358664151,-500.0,0.00011268,2]
[348157766,1736358664161,-500.0,0.00011268,2]
[348157767,1736358664170,-500.0,0.00011268,2]
[348157768,1736358664181,-500.0,0.00011268,2]
[348157769,1736358664192,-500.0,0.00011268,2]
[348157770,1736358664203,-500.0,0.00011268,2]
[348157771,1736358664214,-500.0,0.00011268,2]
[348157772,1736358664225,-500.0,0.00011268,2]
[348157773,1736358664236,-732.89,0.00011268,2]
[348157774,1736358664247,-643.05,0.00011268,2]
[348157775,1736358664258,-668.24,0.00011268,2]
[348157776,1736358664269,-553.17,0.00011268,2]
[348157777,1736358664279,-551.84,0.00011268,2]
[348157778,1736358664291,-500.0,0.00011268,2]
[348157779,1736358664302,-500.0,0.00011268,2]
[348157780,1736358664312,-500.0,0.00011268,2]
[348157781,1736358664323,-500.0,0.00011268,2]
[348157782,1736358664333,-171.92160056,0.0001128,2]
[348157783,1736358664343,-150.0,0.00011292,2]
[348157784,1736358664353,-150.227651,0.00011294,2]
[348157785,1736358664365,-150.0,0.00011295,2]
[348157786,1736358664375,-150.0,0.00011297,2]
[348157787,1736358664385,-500.0,0.000113,2]
[348157788,1736358664397,-500.0,0.000113,2]
[348157789,1736358664407,-500.0,0.000113,2]
[348157790,1736358664418,-500.0,0.000113,2]
[348157791,1736358664428,-500.0,0.000113,2]
[348157792,1736358664439,-500.0,0.000113,2]
[348157793,1736358664449,-500.0,0.000113,2]
[348157794,1736358664459,-500.0,0.000113,2]
[348157795,1736358664469,-546.45,0.000113,2]
[348157796,1736358664480,-500.0,0.000113,2]
[348157797,1736358664490,-555.04,0.00011306,2]
[348157798,1736358664501,-150.0,0.0001131,2]
[348157799,1736358664511,-150.0,0.00011329,2]
[348157800,1736358664522,-437.79,0.00011342,2]
[348157801,1736358664532,-771.95,0.00011342,2]
[348157802,1736358664542,-771.95,0.00011342,2]
[348157803,1736358664552,-437.79,0.00011342,2]
[348157804,1736358664562,-437.79,0.00011342,2]
[348157805,1736358664572,-771.95,0.00011342,2]
[348157806,1736358664583,-437.79,0.00011342,2]
[348157807,1736358664593,-771.95,0.00011342,2]
[348157808,1736358664603,-771.95,0.00011342,2]
[348157809,1736358664614,-437.79,0.00011342,2]
[348157810,1736358664623,-437.79,0.00011342,2]
[348157811,1736358664633,-437.79,0.00011342,2]
[348157812,1736358664644,-150.0,0.00011343,2]
[348157813,1736358664655,-150.0,0.00011348,2]
[348157814,1736358664665,-150.0,0.00011349,2]
[348157815,1736358664675,-216.08545487,0.0001135,2]
[348157816,1736358664685,-500.0,0.00011357,2]
[348157817,1736358664695,-543.57,0.00011357,2]
[348157818,1736358664706,-282.39,0.00011357,2]
[348157819,1736358664716,-500.0,0.00011357,2]
[348157820,1736358664726,-500.0,0.00011357,2]
[348157821,1736358664735,-500.0,0.00011357,2]
[348157822,1736358664746,-500.0,0.00011357,2]
[348157823,1736358664756,-604.64,0.00011357,2]
[348157824,1736358664766,-190.86458025,0.00011357,2]
[348157825,1736358664777,-500.0,0.00011357,2]
[348157826,1736358664787,-500.0,0.00011357,2]
[348157827,1736358664798,-299.95,0.00011357,2]
[348157828,1736358664810,-500.0,0.00011357,2]
[348157829,1736358664819,-500.0,0.00011357,2]
[348157830,1736358664830,-226.45,0.00011357,2]
[348157831,1736358664840,-150.0,0.00011358,2]
[348157832,1736358664851,-150.0,0.00011366,2]
[348157833,1736358664861,-150.0,0.00011367,2]
[348157834,1736358664870,-150.0,0.0001137,2]
[348157835,1736358664880,-150.0,0.00011378,2]
[348157836,1736358664890,-425.85067894,0.0001139,2]
[348157837,1736358664901,-150.0,0.00011402,2]
[348157838,1736358664910,-1083.11,0.00011405,2]
[348157839,1736358664918,-516.58,0.00011405,2]
[348157840,1736358664927,-500.0,0.00011405,2]
[348157841,1736358664936,-984.28,0.00011405,2]
[348157842,1736358664945,-1369.61,0.00011405,2]
[348157843,1736358664953,-1218.11,0.00011405,2]
[348157844,1736358664962,-914.32,0.00011405,2]
[348157845,1736358664971,-1814.27,0.00011405,2]
[348157846,1736358664980,-798.74,0.00011405,2]
[348157847,1736358664990,-3201.05,0.00011405,2]
[348157848,1736358664999,-2717.33,0.00011405,2]
[348157849,1736358665008,-500.0,0.00011405,2]
[348157850,1736358665018,-1247.08,0.00011405,2]
[348157851,1736358665027,-2263.75,0.00011405,2]
[348157852,1736358665036,-1013.56,0.00011405,2]
[348157853,1736358665045,-546.88,0.00011405,2]
[348157854,1736358665054,-959.73,0.00011405,2]
[348157855,1736358665065,-902.05,0.00011405,2]
[348157856,1736358665075,-1571.05,0.00011405,2]
[348157857,1736358665084,-875.85,0.00011405,2]
[348157858,1736358665093,-500.0,0.00011406,2]
[348157859,1736358665102,-1011.19,0.00011406,2]
[348157860,1736358665112,-1352.67,0.00011406,2]
[348157861,1736358665122,-878.9,0.00011406,2]
[348157862,1736358665131,-766.28,0.00011406,2]
[348157863,1736358665141,-500.0,0.00011406,2]
[348157864,1736358665154,-762.31,0.00011406,2]
[348157865,1736358665165,-2056.21,0.00011406,2]
[348157866,1736358665176,-1011.92,0.00011406,2]
[348157867,1736358665188,-150.0,0.00011406,2]
[348157868,1736358665200,-500.0,0.00011406,2]
[348157869,1736358665210,-150.0,0.00011412,2]
[348157870,1736358665220,-150.0,0.0001142,2]
[348157871,1736358665230,-1628.0,0.00011432,2]
[348157872,1736358665240,-150.227651,0.00011435,2]
[348157873,1736358665250,-500.0,0.00011443,2]
[348157874,1736358665260,-500.0,0.00011443,2]
[348157875,1736358665269,-522.19,0.00011443,2]
[348157876,1736358665279,-500.0,0.00011443,2]
[348157877,1736358665289,-529.74,0.00011443,2]
[348157878,1736358665299,-500.0,0.00011443,2]
[348157879,1736358665309,-500.0,0.00011443,2]
[348157880,1736358665319,-500.0,0.00011443,2]
[348157881,1736358665330,-500.0,0.00011443,2]
[348157882,1736358665339,-555.04,0.00011443,2]
[348157883,1736358665349,-500.0,0.00011443,2]
[348157884,1736358665359,-500.0,0.00011443,2]
[348157885,1736358665370,-349.20149111,0.00011443,2]
[348157886,1736358665382,-567.04,0.00011443,2]
[348157887,1736358665392,-567.11,0.00011443,2]
[348157888,1736358665405,-737.87,0.00011443,2]
[348157889,1736358665417,-160.8,0.00011443,2]
[348157890,1736358665430,-500.0,0.00011443,2]
[348157891,1736358665440,-607.18,0.00011443,2]
[348157892,1736358665450,-500.0,0.00011443,2]
[348157893,1736358665460,-500.0,0.00011443,2]
[348157894,1736358665470,-500.0,0.00011443,2]
[348157895,1736358665479,-670.8,0.00011443,2]
[348157896,1736358665489,-229.95270172,0.00011443,2]
[348157897,1736358665499,-500.0,0.00011443,2]
[348157898,1736358665508,-500.0,0.00011443,2]
[348157899,1736358665518,-500.0,0.00011443,2]
[348157900,1736358665528,-500.0,0.00011443,2]
[348157901,1736358665538,-500.0,0.00011443,2]
[348157902,1736358665547,-500.0,0.00011443,2]
[348157903,1736358665557,-500.0,0.00011443,2]
[348157904,1736358665566,-932.54,0.00011443,2]
[348157905,1736358665576,-545.36,0.00011443,2]
[348157906,1736358665585,-500.0,0.00011443,2]
[348157907,1736358665595,-500.0,0.00011443,2]
[348157908,1736358665605,-500.0,0.00011443,2]
[348157909,1736358665615,-281.55,0.00011443,2]
[348157910,1736358665624,-500.0,0.00011443,2]
[348157911,1736358665634,-1666.65,0.00011443,2]
[348157912,1736358665645,-387.21,0.00011443,2]
[348157913,1736358665655,-500.0,0.00011443,2]
[348157914,1736358665664,-500.0,0.00011443,2]
[348157915,1736358665674,-500.0,0.00011443,2]
[348157916,1736358665683,-500.0,0.00011443,2]
[348157917,1736358665692,-967.75,0.00011443,2]
[348157918,1736358665701,-500.0,0.00011443,2]
[348157919,1736358665712,-500.0,0.00011443,2]
[348157920,1736358665722,-238.81,0.00011443,2]
[348157921,1736358665732,-500.0,0.00011443,2]
[348157922,1736358665741,-500.0,0.00011443,2]
[348157923,1736358665751,-500.0,0.00011443,2]
[348157924,1736358665760,-647.46,0.00011443,2]
[348157925,1736358665770,-500.0,0.00011443,2]
[348157926,1736358665780,-1567.94,0.00011443,2]
[348157927,1736358665790,-3100.14,0.00011443,2]
[348157928,1736358665800,-743.069268,0.00011443,2]
[348157929,1736358665814,-500.0,0.00011443,2]
[348157930,1736358665824,-500.0,0.00011443,2]
[348157931,1736358665835,-661.3318,0.00011443,2]
[348157932,1736358665845,-577.7,0.00011443,2]
[348157933,1736358665855,-500.0,0.00011443,2]
[348157934,1736358665864,-2800.0,0.00011443,2]
[348157935,1736358665873,-500.0,0.00011443,2]
[348157936,1736358665884,-1204.5,0.00011443,2]
[348157937,1736358665894,-500.0,0.00011443,2]
[348157938,1736358665904,-2894.34,0.00011443,2]
[348157939,1736358665913,-500.0,0.00011443,2]
[348157940,1736358665922,-1392.16,0.00011443,2]
[348157941,1736358665933,-500.0,0.00011443,2]
[348157942,1736358665942,-520.99,0.00011443,2]
[348157943,1736358665952,-500.0,0.00011443,2]
[348157944,1736358665962,-500.0,0.00011443,2]
[348157945,1736358665972,-633.08,0.00011443,2]
[348157946,1736358665982,-2974.5,0.00011443,2]
[348157947,1736358666114,-2170.29,0.00011443,2]
[348157948,1736358666136,-500.0,0.00011443,2]
[348157949,1736358666147,-500.0,0.00011443,2]
[348157950,1736358666156,-198.81,0.00011443,2]
[348157951,1736358666167,-684.22,0.00011443,2]
[348157952,1736358666177,-500.0,0.00011443,2]
[348157953,1736358666187,-500.0,0.00011443,2]
[348157954,1736358666197,-262.54,0.00011443,2]
[348157955,1736358666207,-500.0,0.00011443,2]
[348157956,1736358666217,-1093.14,0.00011443,2]
[348157957,1736358666227,-500.0,0.00011443,2]
[348157958,1736358666237,-2357.74,0.00011443,2]
[348157959,1736358666247,-500.0,0.00011443,2]
[348157960,1736358666256,-500.0,0.00011443,2]
[348157961,1736358666266,-500.0,0.00011443,2]
[348157962,1736358666276,-500.0,0.00011443,2]
[348157963,1736358666285,-1313.2,0.00011443,2]
[348157964,1736358666295,-1234.42,0.00011443,2]
[348157965,1736358666305,-895.52,0.00011443,2]
[348157966,1736358666315,-500.0,0.00011443,2]
[348157967,1736358666326,-500.0,0.00011443,2]
[348157968,1736358666336,-500.0,0.00011443,2]
[348157969,1736358666346,-500.0,0.00011443,2]
[348157970,1736358666355,-321.27,0.00011443,2]
[348157971,1736358666365,-957.62,0.00011443,2]
[348157972,1736358666375,-212.78,0.00011443,2]
[348157973,1736358666386,-1751.04,0.00011443,2]
[348157974,1736358666396,-500.0,0.00011443,2]
[348157975,1736358666406,-2455.11,0.00011443,2]
[348157976,1736358666419,-500.0,0.00011443,2]
[348157977,1736358666430,-532.55,0.00011443,2]
[348157978,1736358666440,-500.0,0.00011443,2]
[348157979,1736358666450,-500.0,0.00011443,2]
[348157980,1736358666461,-526.01,0.00011443,2]
[348157981,1736358666471,-500.0,0.00011443,2]
[348157982,1736358666482,-500.0,0.00011443,2]
[348157983,1736358666492,-535.44,0.00011443,2]
[348157984,1736358666503,-1399.45,0.00011443,2]
[348157985,1736358666514,-535.05,0.00011443,2]
[348157986,1736358666523,-682.66,0.00011443,2]
[348157987,1736358666534,-280.7295058,0.00011443,2]
[348157988,1736358666544,-1386.23,0.00011443,2]
[348157989,1736358666554,-1070.5,0.00011443,2]
[348157990,1736358666566,-500.0,0.00011443,2]
[348157991,1736358666577,-500.0,0.00011443,2]
[348157992,1736358666587,-500.0,0.00011443,2]
[348157993,1736358666597,-1322.17,0.00011447,2]
[348157994,1736358666607,-1939.95,0.00011447,2]
[348157995,1736358666617,-5591.78,0.00011447,2]
[348157996,1736358666627,-568.8,0.00011447,2]
[348157997,1736358666637,-543.87,0.00011447,2]
[348157998,1736358666648,-500.0,0.00011447,2]
[348157999,1736358666658,-1960.67,0.00011447,2]
[348158000,1736358666669,-557.32,0.00011447,2]
[348158001,1736358666679,-843.3,0.00011447,2]
[348158002,1736358666689,-717.18,0.00011447,2]
[348158003,1736358666699,-150.0,0.00011452,2]
[348158004,1736358666709,-150.0,0.0001147,2]
[348158005,1736358666718,-300.0,0.00011479,2]
[348158006,1736358666728,-344.74,0.00011479,2]
[348158007,1736358666740,-150.0,0.00011479,2]
[348158008,1736358666750,-979.58,0.00011479,2]
[348158009,1736358666760,-150.0,0.00011479,2]
[348158010,1736358666770,-437.05,0.00011479,2]
[348158011,1736358666780,-979.58,0.00011479,2]
[348158012,1736358666791,-150.0,0.00011479,2]
[348158013,1736358666800,-437.05,0.00011479,2]
[348158014,1736358666813,-150.0,0.00011479,2]
[348158015,1736358666823,-150.0,0.00011479,2]
[348158016,1736358666835,-979.58,0.00011479,2]
[348158017,1736358666844,-150.0,0.00011479,2]
[348158018,1736358666855,-437.05,0.00011479,2]
[348158019,1736358666867,-150.0,0.00011486,2]
[348158020,1736358666878,-433.0,0.00011495,2]
[348158021,1736358666889,-1300.0,0.000115,4]
[348158022,1736358666899,-150.0,0.00011505,2]
[348158023,1736358666909,-300.0,0.00011507,2]
[348158024,1736358666919,-2751.0,0.00011507,2]
[348158025,1736358666929,-500.0,0.00011521,2]
[348158026,1736358666938,-835.61,0.00011521,2]
[348158027,1736358666947,-500.0,0.00011521,2]
[348158028,1736358666957,-641.86,0.00011521,2]
[348158029,1736358666968,-500.0,0.00011521,2]
[348158030,1736358666978,-615.0,0.00011521,2]
[348158031,1736358666988,-1257.65,0.00011521,2]
[348158032,1736358666998,-698.7,0.00011522,2]
[348158033,1736358667007,-1000.0,0.00011522,2]
[348158034,1736358667016,-523.81,0.00011522,2]
[348158035,1736358667026,-500.0,0.00011522,2]
[348158036,1736358667036,-1321.17,0.00011522,2]
[348158037,1736358667045,-1035.42,0.00011522,2]
[348158038,1736358667055,-150.0,0.00011534,2]
[348158039,1736358667065,-471.24,0.00011542,2]
[348158040,1736358667075,-500.0,0.00011542,2]
[348158041,1736358667085,-500.0,0.00011542,2]
[348158042,1736358667095,-500.0,0.00011542,2]
[348158043,1736358667105,-613.51,0.00011542,2]
[348158044,1736358667115,-410.09,0.00011542,2]
[348158045,1736358667125,-500.0,0.00011542,2]
[348158046,1736358667135,-652.44,0.00011542,2]
[348158047,1736358667146,-500.0,0.00011542,2]
[348158048,1736358667157,-660.33,0.00011542,2]
[348158049,1736358667166,-669.83,0.00011542,2]
[348158050,1736358667176,-517.22799427,0.00011542,2]
[348158051,1736358667186,-500.0,0.00011542,2]
[348158052,1736358667196,-386.37,0.00011542,2]
[348158053,1736358667205,-500.0,0.00011542,2]
[348158054,1736358667215,-500.0,0.00011542,2]
[348158055,1736358667225,-500.0,0.00011542,2]
[348158056,1736358667235,-500.0,0.00011542,2]
[348158057,1736358667245,-500.0,0.00011542,2]
[348158058,1736358667255,-500.0,0.00011542,2]
[348158059,1736358667265,-500.0,0.00011542,2]
[348158060,1736358667275,-500.0,0.00011542,2]
[348158061,1736358667285,-500.0,0.00011542,2]
[348158062,1736358667295,-500.0,0.00011542,2]
[348158063,1736358667305,-500.0,0.00011542,2]
[348158064,1736358667315,-500.0,0.00011542,2]
[348158065,1736358667325,-500.0,0.00011542,2]
[348158066,1736358667335,-542.69,0.00011542,2]
[348158067,1736358667345,-500.0,0.00011542,2]
[348158068,1736358667355,-500.0,0.00011542,2]
[348158069,1736358667365,-732.89,0.00011542,2]
[348158070,1736358667375,-668.24,0.00011542,2]
[348158071,1736358667385,-551.84,0.00011542,2]
[348158072,1736358667395,-500.0,0.00011542,2]
[348158073,1736358667405,-500.0,0.00011542,2]
[348158074,1736358667415,-500.0,0.00011542,2]
[348158075,1736358667424,-150.0,0.00011553,2]
[348158076,1736358667434,-150.0,0.00011557,2]
[348158077,1736358667444,-150.0,0.00011575,2]
[348158078,1736358667453,-150.227651,0.00011576,2]
[348158079,1736358667463,-555.04,0.0001158,2]
[348158080,1736358667473,-150.0,0.00011588,2]
[348158081,1736358667483,-1300.0,0.000116,4]
[348158082,1736358667493,-500.0,0.00011631,2]
[348158083,1736358667503,-331.80432146,0.00011631,2]
[348158084,1736358667512,-500.0,0.00011631,2]
[348158085,1736358667522,-415.73512616,0.00011631,2]
[348158086,1736358667532,-500.0,0.00011631,2]
[348158087,1736358667541,-649.15685573,0.00011631,2]
[348158088,1736358667551,-500.0,0.00011631,2]
[348158089,1736358667561,-500.0,0.00011631,2]
[348158090,1736358667571,-500.0,0.00011631,2]
[348158091,1736358667582,-150.0,0.00011635,2]
[348158092,1736358667591,-150.0,0.00011656,2]
[348158093,1736358667601,-216.08545487,0.0001166,2]
[348158094,1736358667611,-1083.11,0.00011679,2]
[348158095,1736358667620,-516.58,0.00011679,2]
[348158096,1736358667630,-500.0,0.00011679,2]
[348158097,1736358667640,-984.28,0.00011679,2]
[348158098,1736358667651,-1369.61,0.00011679,2]
[348158099,1736358667661,-1218.11,0.00011679,2]
[348158100,1736358667671,-914.32,0.00011679,2]
[348158101,1736358667680,-1814.27,0.00011679,2]
[348158102,1736358667691,-798.74,0.00011679,2]
[348158103,1736358667700,-3201.05,0.00011679,2]
[348158104,1736358667709,-2717.33,0.00011679,2]
[348158105,1736358667719,-500.0,0.00011679,2]
[348158106,1736358667729,-1247.08,0.00011679,2]
[348158107,1736358667738,-2263.75,0.00011679,2]
[348158108,1736358667748,-1013.56,0.00011679,2]
[348158109,1736358667758,-546.88,0.00011679,2]
[348158110,1736358667768,-959.73,0.00011679,2]
[348158111,1736358667779,-2178.58,0.00011679,2]
[348158112,1736358667788,-902.05,0.00011679,2]
[348158113,1736358667802,-1571.05,0.00011679,2]
[348158114,1736358667811,-235.23,0.0001168,2]
[348158115,1736358667821,-264.487,0.0001168,2]
[348158116,1736358667831,-150.0,0.0001168,2]
[348158117,1736358667842,-1011.19,0.0001168,2]
[348158118,1736358667852,-1352.67,0.0001168,2]
[348158119,1736358667862,-878.9,0.0001168,2]
[348158120,1736358667872,-766.28,0.0001168,2]
[348158121,1736358667882,-500.0,0.0001168,2]
[348158122,1736358667893,-762.31,0.0001168,2]
[348158123,1736358667906,-2056.21,0.0001168,2]
[348158124,1736358667916,-1011.92,0.0001168,2]
[348158125,1736358667925,-500.0,0.0001168,2]
[348158126,1736358667935,-32221.0,0.00011699,2]
[348158127,1736358667945,-150.0,0.000117,2]
[348158128,1736358667954,-1300.0,0.000117,4]
[348158129,1736358667964,-150.0,0.0001171,2]
[348158130,1736358667973,-150.0,0.00011715,2]
[348158131,1736358667983,-500.0,0.00011717,2]
[348158132,1736358667992,-644.39,0.00011717,2]
[348158133,1736358668001,-522.19,0.00011717,2]
[348158134,1736358668011,-500.0,0.00011717,2]
[348158135,1736358668020,-500.0,0.00011717,2]
[348158136,1736358668030,-500.0,0.00011717,2]
[348158137,1736358668039,-500.0,0.00011717,2]
[348158138,1736358668048,-500.0,0.00011717,2]
[348158139,1736358668057,-555.04,0.00011717,2]
[348158140,1736358668068,-382.75,0.00011717,2]
[348158141,1736358668079,-200.32,0.00011717,2]
[348158142,1736358668089,-567.11,0.00011717,2]
[348158143,1736358668099,-737.87,0.00011717,2]
[348158144,1736358668108,-500.0,0.00011717,2]
[348158145,1736358668118,-607.18,0.00011717,2]
[348158146,1736358668127,-500.0,0.00011717,2]
[348158147,1736358668137,-500.0,0.00011717,2]
[348158148,1736358668149,-587.95,0.00011717,2]
[348158149,1736358668158,-670.8,0.00011717,2]
[348158150,1736358668168,-211.16,0.00011717,2]
[348158151,1736358668178,-500.0,0.00011717,2]
[348158152,1736358668187,-500.0,0.00011717,2]
[348158153,1736358668197,-500.0,0.00011717,2]
[348158154,1736358668207,-202.02,0.00011717,2]
[348158155,1736358668217,-500.0,0.00011717,2]
[348158156,1736358668227,-932.54,0.00011717,2]
[348158157,1736358668237,-545.36,0.00011717,2]
[348158158,1736358668247,-500.0,0.00011717,2]
[348158159,1736358668256,-500.0,0.00011717,2]
[348158160,1736358668267,-500.0,0.00011717,2]
[348158161,1736358668277,-340.92069404,0.00011717,2]
[348158162,1736358668287,-1666.65,0.00011717,2]
[348158163,1736358668296,-411.82,0.00011717,2]
[348158164,1736358668307,-187.69,0.00011717,2]
[348158165,1736358668317,-500.0,0.00011717,2]
[348158166,1736358668327,-500.0,0.00011717,2]
[348158167,1736358668470,-967.75,0.00011717,2]
[348158168,1736358668481,-332.50389303,0.00011717,2]
[348158169,1736358668491,-500.0,0.00011717,2]
[348158170,1736358668501,-500.0,0.00011717,2]
[348158171,1736358668511,-500.0,0.00011717,2]
[348158172,1736358668521,-500.0,0.00011717,2]
[348158173,1736358668531,-647.46,0.00011717,2]
[348158174,1736358668541,-500.0,0.00011717,2]
[348158175,1736358668551,-1567.94,0.00011717,2]
[348158176,1736358668562,-3100.14,0.00011717,2]
[348158177,1736358668572,-743.069268,0.00011717,2]
[348158178,1736358668581,-500.0,0.00011717,2]
[348158179,1736358668591,-500.0,0.00011717,2]
[348158180,1736358668601,-661.3318,0.00011717,2]
[348158181,1736358668611,-577.7,0.00011717,2]
[348158182,1736358668621,-500.0,0.00011717,2]
[348158183,1736358668630,-2800.0,0.00011717,2]
[348158184,1736358668639,-153.007601,0.00011717,2]
[348158185,1736358668649,-153.007601,0.00011717,2]
[348158186,1736358668659,-500.0,0.00011717,2]
[348158187,1736358668668,-1204.5,0.00011717,2]
[348158188,1736358668678,-500.0,0.00011717,2]
[348158189,1736358668688,-2894.34,0.00011717,2]
[348158190,1736358668698,-500.0,0.00011717,2]
[348158191,1736358668708,-1392.16,0.00011717,2]
[348158192,1736358668717,-500.0,0.00011717,2]
[348158193,1736358668727,-500.0,0.00011717,2]
[348158194,1736358668737,-500.0,0.00011717,2]
[348158195,1736358668746,-633.08,0.00011717,2]
[348158196,1736358668755,-2974.5,0.00011717,2]
[348158197,1736358668765,-2170.29,0.00011717,2]
[348158198,1736358668774,-500.0,0.00011717,2]
[348158199,1736358668784,-500.0,0.00011717,2]
[348158200,1736358668794,-684.22,0.00011717,2]
[348158201,1736358668805,-500.0,0.00011717,2]
[348158202,1736358668815,-500.0,0.00011717,2]
[348158203,1736358668825,-500.0,0.00011717,2]
[348158204,1736358668835,-1093.14,0.00011717,2]
[348158205,1736358668844,-500.0,0.00011717,2]
[348158206,1736358668855,-2357.74,0.00011717,2]
[348158207,1736358668865,-593.8,0.00011717,2]
[348158208,1736358668874,-500.0,0.00011717,2]
[348158209,1736358668887,-500.0,0.00011717,2]
[348158210,1736358668899,-500.0,0.00011717,2]
[348158211,1736358668909,-1313.2,0.00011717,2]
[348158212,1736358668918,-1234.42,0.00011717,2]
[348158213,1736358668928,-895.52,0.00011717,2]
[348158214,1736358668938,-500.0,0.00011717,2]
[348158215,1736358668947,-500.0,0.00011717,2]
[348158216,1736358668957,-500.0,0.00011717,2]
[348158217,1736358668967,-500.0,0.00011717,2]
[348158218,1736358668976,-957.62,0.00011717,2]
[348158219,1736358668986,-1751.04,0.00011717,2]
[348158220,1736358668995,-589.1,0.00011717,2]
[348158221,1736358669005,-2455.11,0.00011717,2]
[348158222,1736358669015,-532.55,0.00011717,2]
[348158223,1736358669025,-500.0,0.00011717,2]
[348158224,1736358669034,-434.59,0.00011717,2]
[348158225,1736358669044,-526.01,0.00011717,2]
[348158226,1736358669054,-500.0,0.00011717,2]
[348158227,1736358669065,-535.44,0.00011717,2]
[348158228,1736358669075,-500.0,0.00011717,2]
[348158229,1736358669085,-1399.45,0.00011717,2]
[348158230,1736358669095,-535.05,0.00011717,2]
[348158231,1736358669104,-682.66,0.00011717,2]
[348158232,1736358669113,-1386.23,0.00011717,2]
[348158233,1736358669123,-1070.5,0.00011717,2]
[348158234,1736358669132,-500.0,0.00011717,2]
[348158235,1736358669142,-504.85353415,0.00011717,2]
[348158236,1736358669154,-500.0,0.00011717,2]
[348158237,1736358669163,-150.227651,0.00011717,2]
[348158238,1736358669172,-150.0,0.00011719,2]
[348158239,1736358669181,-150.0,0.00011719,2]
[348158240,1736358669191,-150.0,0.0001172,2]
[348158241,1736358669200,-1322.17,0.00011721,2]
[348158242,1736358669209,-1939.95,0.00011721,2]
[348158243,1736358669219,-5591.78,0.00011721,2]
[348158244,1736358669228,-568.8,0.00011721,2]
[348158245,1736358669237,-543.87,0.00011721,2]
[348158246,1736358669247,-500.0,0.00011721,2]
[348158247,1736358669256,-1960.67,0.00011721,2]
[348158248,1736358669266,-557.32,0.00011721,2]
[348158249,1736358669275,-843.3,0.00011721,2]
[348158250,1736358669285,-717.18,0.00011721,2]
[348158251,1736358669294,-150.0,0.0001175,2]
[348158252,1736358669305,-150.0,0.00011753,2]
[348158253,1736358669315,-150.0,0.00011771,2]
[348158254,1736358669324,-500.0,0.0001178,2]